fUSD/lending_fUSD_20260701
["ID","MTS","AMOUNT","RATE_DAILY","PERIOD"]
[426806746,1782850232000,-150.0,0.00013752,2]
[426806747,1782850232000,-1331.79,0.00013797,2]
[426806744,1782850232000,-162.5,0.00013679,2]
[426806741,1782850232000,-208.2,0.00013488,2]
[426806743,1782850232000,-166.66,0.00013595,2]
[426806740,1782850232000,-28.38192636,0.00013401,2]
[426806739,1782850232000,-221.61807364,0.00013401,2]
[426806738,1782850232000,-166.66,0.00013315,2]
[426806749,1782850232000,-258.44721375,0.00013843,2]
[426806742,1782850232000,-157.28769225,0.00013503,2]
[426806748,1782850232000,-164.62,0.0001381,2]
[426806755,1782850232000,-500.0,0.00013919,2]
[426806753,1782850232000,-150.0,0.00013918,2]
[426806752,1782850232000,-939.266,0.00013904,2]
[426806765,1782850232000,-3.98482557,0.00013919,2]
[426806764,1782850232000,-301.92595448,0.00013919,2]
[426806762,1782850232000,-500.0,0.00013919,2]
[426806761,1782850232000,-391.46595448,0.00013919,2]
[426806763,1782850232000,-198.07404552,0.00013919,2]
[426806770,1782850232000,-11.98482557,0.00013919,2]
[426806754,1782850232000,-500.0,0.00013919,2]
[426806758,1782850232000,-42.46595448,0.00013919,2]
[426806757,1782850232000,-175.67716764,0.00013919,2]
[426806759,1782850232000,-500.0,0.00013919,2]
[426806760,1782850232000,-108.53404552,0.00013919,2]
[426806756,1782850232000,-500.0,0.00013919,2]
[426806768,1782850232000,-496.01517443,0.00013919,2]
[426806788,1782850238000,-259.77705932,0.00013919,2]
[426806787,1782850238000,-488.01517443,0.00013919,2]
[426807012,1782850240000,-500.0,0.00013919,2]
[426807014,1782850240000,-500.0,0.00013919,2]
[426807016,1782850240000,-500.0,0.00013919,2]
[426807018,1782850240000,-500.0,0.00013919,2]
[426807024,1782850240000,-156.1749121,0.00014059,2]
[426807020,1782850240000,-500.0,0.00013945,2]
[426807034,1782850240000,-282.32099229,0.00014467,2]
[426807026,1782850240000,-166.66,0.00014156,2]
[426807009,1782850240000,-500.0,0.00013919,2]
[426807022,1782850240000,-162.3,0.00014044,2]
[426807011,1782850240000,-500.0,0.00013919,2]
[426806995,1782850240000,-500.0,0.00013919,2]
[426806999,1782850240000,-500.0,0.00013919,2]
[426807003,1782850240000,-500.0,0.00013919,2]
[426806997,1782850240000,-500.0,0.00013919,2]
[426807001,1782850240000,-500.0,0.00013919,2]
[426807005,1782850240000,-500.0,0.00013919,2]
[426806989,1782850240000,-260.44329375,0.00013919,2]
[426806993,1782850240000,-500.0,0.00013919,2]
[426806991,1782850240000,-199.50005988,0.00013919,2]
[426806969,1782850240000,-239.55670625,0.00013919,2]
[426806967,1782850240000,-93.70524341,0.00013919,2]
[426807030,1782850240000,-166.66,0.00014436,2]
[426807007,1782850240000,-500.0,0.00013919,2]
[426807038,1782850240000,-500.0,0.00014484,2]
[426807028,1782850240000,-162.5,0.00014363,2]
[426807036,1782850240000,-369.62672576,0.00014483,2]
[426807077,1782850240000,-600.0,0.00014646,2]
[426807073,1782850240000,-300.0,0.00014646,2]
[426807071,1782850240000,-978.7588181,0.00014645,2]
[426807060,1782850240000,-817.68050004,0.00014581,2]
[426807083,1782850240000,-300.0,0.00014646,2]
[426807069,1782850240000,-250.0,0.00014621,2]
[426807079,1782850240000,-600.0,0.00014646,2]
[426807067,1782850240000,-2226.8615,0.00014583,2]
[426807081,1782850240000,-600.0,0.00014646,2]
[426807064,1782850240000,-3072.63922804,0.00014583,2]
[426807065,1782850240000,-555.67816727,0.00014583,2]
[426807062,1782850240000,-1223.2011258,0.00014581,2]
[426807075,1782850240000,-600.0,0.00014646,2]
[426807051,1782850240000,-821.47,0.00014497,2]
[426807057,1782850240000,-463.50655264,0.00014581,2]
[426807042,1782850240000,-500.0,0.00014496,2]
[426807043,1782850240000,-500.0,0.00014496,2]
[426807046,1782850240000,-542.37235993,0.00014496,2]
[426807048,1782850240000,-3509.61,0.00014497,2]
[426807032,1782850240000,-157.24640537,0.00014467,2]
[426807041,1782850240000,-178.73430293,0.00014496,2]
[426807040,1782850240000,-180.24508654,0.00014496,2]
[426807049,1782850240000,-26330.77,0.00014497,2]
[426807044,1782850240000,-166.33671145,0.00014496,2]
[426807053,1782850240000,-1319.74,0.00014497,2]
[426807055,1782850240000,-175.63614013,0.00014581,2]
[426807091,1782850241000,-300.0,0.00014646,2]
[426807087,1782850241000,-661.5241402,0.00014646,2]
[426807089,1782850241000,-300.0,0.00014646,2]
[426807085,1782850241000,-300.0,0.00014646,2]
[426807096,1782850241000,-2977.88243548,0.00014683,2]
[426807092,1782850241000,-250.0,0.00014646,2]
[426807094,1782850241000,-2052.82349002,0.00014672,2]
[426807100,1782850241000,-58406.51614663,0.00014683,2]
[426807102,1782850241000,-1687.47781572,0.00014683,2]
[426807248,1782850243000,-790.70620023,0.00014683,2]
[426807246,1782850243000,-898.63439297,0.00014683,2]
[426807249,1782850243000,-1361.39009554,0.00014683,2]
[426807247,1782850243000,-10624.01861961,0.00014683,2]
[426807245,1782850243000,-9400.5959,0.00014583,2]
[426807262,1782850247000,-500.0,0.00014646,2]
[426807263,1782850247000,-1095.42000021,0.00014683,2]
[426807269,1782850254000,1201.701,0.0003,120]
[426807270,1782850295000,153.0,0.0002853,30]
[426807271,1782850296000,153.0,0.0002953,30]
[426807272,1782850308000,2001.701,0.0003,120]
[426807273,1782850316000,165.0,0.0002853,30]
[426807274,1782850318000,165.0,0.0002953,30]
[426807275,1782850352000,583.0,0.0002853,30]
[426807276,1782850353000,583.0,0.0002953,30]
[426807279,1782850449000,155.0,0.0002853,30]
[426807280,1782850450000,155.0,0.0002953,30]
[426807281,1782850463000,15640.0,0.00030137,120]
[426807285,1782850513000,600.0,0.0003,120]
[426807287,1782850530000,22767.9783985,0.00030137,30]
[426807293,1782850761000,340.0,0.00030137,30]
[426807295,1782850773000,340.0,0.00030137,30]
[426807294,1782850773000,417.74384368,0.0002848,30]
[426807297,1782850785000,340.0,0.00030137,30]
[426807299,1782850797000,340.0,0.00030137,30]
[426807301,1782850808000,340.0,0.00030137,30]
[426807302,1782850828000,340.0,0.00030137,30]
[426807303,1782850840000,340.0,0.00030137,30]
[426807307,1782850887000,213.06738741,0.00025285,120]
[426807308,1782850890000,297.0,0.00030129,30]
[426807309,1782850893000,887.0,0.00030129,30]
[426807310,1782850922000,1420.99015768,0.0003013,30]
[426807312,1782850934000,297.0,0.000301,120]
[426807314,1782850948000,161.288868,0.0002,120]
[426807315,1782850949000,161.288868,0.00026667,120]
[426807316,1782850950000,2500.0,0.00030137,30]
[426807318,1782851009000,227.61312105,0.00025176,30]
[426807317,1782851009000,207.38657199,0.00026043,120]
[426807321,1782851010000,2500.0,0.00030137,30]
[426807320,1782851010000,227.61312105,0.00025754,60]
[426807319,1782851010000,227.61312105,0.00025465,60]
[426807322,1782851011000,227.61312105,0.00026043,120]
[426807324,1782851017000,994.01264132,0.00025415,30]
[426807323,1782851017000,994.01264132,0.00025346,30]
[426807326,1782851018000,994.01264132,0.00025555,30]
[426807325,1782851018000,994.01264132,0.00025485,30]
[426807327,1782851019000,994.01264132,0.00025625,30]
[426807328,1782851020000,994.01264132,0.00025694,30]
[426807329,1782851020000,994.01264132,0.00025764,30]
[426807331,1782851021000,994.01264132,0.00025904,60]
[426807330,1782851021000,994.01264132,0.00025834,60]
[426807333,1782851022000,994.01264132,0.00026043,60]
[426807332,1782851022000,994.01264132,0.00025973,60]
[426807334,1782851035000,99484.00791788,0.00013,2]
[426807336,1782851060000,3604.0,0.00030137,30]
[426807337,1782851070000,2500.0,0.00030137,30]
[426807338,1782851071000,3000.0,0.00030137,30]
[426807339,1782851086000,166.66,0.00012758,2]
[426807340,1782851087000,351.23902377,0.00028078,30]
[426807341,1782851094000,323.11657538,0.0002,120]
[426807342,1782851130000,2500.0,0.00030137,30]
[426807343,1782851145000,159.0,0.0002853,30]
[426807344,1782851180000,384.55319415,0.00012404,2]
[426807345,1782851182000,222.21,0.0003,120]
[426807346,1782851183000,222.54,0.0003,120]
[426807347,1782851186000,223.07,0.0003,120]
[426807348,1782851190000,2500.0,0.00030137,30]
[426807349,1782851233000,164.0,0.0002853,30]
[426807350,1782851235000,164.0,0.0002953,30]
[426807352,1782851250000,2500.0,0.00030137,30]
[426807353,1782851256000,193.546643,0.0002,120]
[426807354,1782851279000,172.0,0.0002853,30]
[426807355,1782851281000,172.0,0.0002953,30]
[426807364,1782851310000,2500.0,0.00030137,30]
[426807366,1782851340000,2000.0,0.00030136,120]
[426807365,1782851340000,2000.0,0.00030136,30]
[426807367,1782851341000,150.0,0.00013143,120]
[426807368,1782851356000,151.0,0.0002853,30]
[426807369,1782851357000,158.0,0.0002953,30]
[426807370,1782851400000,298.5,0.0002803,30]
[426807371,1782851406000,155.0,0.0002853,30]
[426807373,1782851407000,155.0,0.0002953,30]
[426807372,1782851407000,180.01,0.00010439,2]
[426807374,1782851429000,180.18,0.00030136,30]
[426807376,1782851435000,51107.32829589,0.00029,120]
[426807384,1782851437000,-150.0,0.0001303,2]
[426807383,1782851437000,-166.66,0.00013027,2]
[426807394,1782851437000,-169.03,0.000131,14]
[426807388,1782851437000,-280.56394987,0.00013055,2]
[426807389,1782851437000,-183.97,0.00013059,2]
[426807390,1782851437000,-74.39446515,0.00013077,2]
[426807385,1782851437000,-193.0,0.00013033,2]
[426807387,1782851437000,-193.0,0.00013053,2]
[426807391,1782851437000,-425.60553485,0.00013077,2]
[426807392,1782851437000,-500.0,0.00013077,2]
[426807395,1782851437000,-150.0,0.00013143,2]
[426807396,1782851437000,-1000.0,0.0001318,2]
[426807402,1782851437000,-500.0,0.00013282,2]
[426807386,1782851437000,-500.0,0.0001304,2]
[426807398,1782851437000,-299.9444511,0.00013282,2]
[426807399,1782851437000,-500.0,0.00013282,2]
[426807411,1782851437000,-73.97400839,0.00013283,2]
[426807408,1782851437000,-588.78956815,0.00013282,2]
[426807409,1782851437000,-500.0,0.00013282,2]
[426807407,1782851437000,-500.0,0.00013282,2]
[426807406,1782851437000,-271.01585691,0.00013282,2]
[426807410,1782851437000,-4382.54599161,0.00013283,2]
[426807403,1782851437000,-500.0,0.00013282,2]
[426807405,1782851437000,-228.98414309,0.00013282,2]
[426807400,1782851437000,-500.0,0.00013282,2]
[426807401,1782851437000,-500.0,0.00013282,2]
[426807393,1782851437000,-665.89,0.00013099,2]
[426807397,1782851437000,-150.0,0.00013281,2]
[426807404,1782851437000,-500.0,0.00013282,2]
[426807421,1782851438000,-166.66,0.00013833,2]
[426807412,1782851438000,-166.66,0.00013296,2]
[426807413,1782851438000,-1319.09,0.000133,2]
[426807417,1782851438000,-162.5,0.00013697,2]
[426807415,1782851438000,-1025.71,0.00013309,2]
[426807416,1782851438000,-166.66,0.00013564,2]
[426807418,1782851438000,-200.0,0.00013699,2]
[426807419,1782851438000,-150.0,0.0001382,2]
[426807423,1782851438000,-168.83,0.00014246,2]
[426807420,1782851438000,-2000.0,0.00013832,2]
[426807425,1782851438000,-193.0,0.0001433,2]
[426807432,1782851438000,-65.23892796,0.0001433,2]
[426807431,1782851438000,-534.76107204,0.0001433,2]
[426807430,1782851438000,-384.27728397,0.0001433,2]
[426807428,1782851438000,-193.0,0.0001433,2]
[426807433,1782851438000,-551.23117499,0.0001433,2]
[426807426,1782851438000,-294.59610036,0.0001433,2]
[426807422,1782851438000,-166.66,0.00014101,2]
[426807424,1782851438000,-600.0,0.0001433,2]
[426807427,1782851438000,-500.0,0.0001433,2]
[426807429,1782851438000,-300.0,0.0001433,2]
[426807439,1782851439000,-200.47385342,0.0001433,2]
[426807435,1782851439000,-48.76882501,0.0001433,2]
[426807436,1782851439000,-600.0,0.0001433,2]
[426807437,1782851439000,-964.26128763,0.0001433,2]
[426807443,1782851439000,-600.0,0.0001433,2]
[426807441,1782851439000,-300.0,0.0001433,2]
[426807440,1782851439000,-596.36592122,0.0001433,2]
[426807442,1782851439000,-300.0,0.0001433,2]
[426807444,1782851439000,-500.0,0.00014361,2]
[426807447,1782851439000,-9052.1620373,0.00014579,2]
[426807446,1782851439000,-200.0,0.00014566,2]
[426807445,1782851439000,-255.0,0.00014396,2]
[426807448,1782851439000,-1250.7460344,0.00014579,2]
[426807438,1782851439000,-200.0,0.0001433,2]
[426807520,1782851442000,-790.70620023,0.00014579,2]
[426807518,1782851442000,-10299.23029297,0.00014579,2]
[426807519,1782851442000,-10624.01861961,0.00014579,2]
[426807521,1782851442000,-1361.39009554,0.00014579,2]
[426807523,1782851445000,-7651.44044955,0.00014579,2]
[426807525,1782851445000,-3000.0,0.00014579,2]
[426807524,1782851445000,-3000.0,0.00014579,2]
[426807533,1782851445000,-3000.0,0.00014579,2]
[426807529,1782851445000,-3000.0,0.00014579,2]
[426807531,1782851445000,-3000.0,0.00014579,2]
[426807530,1782851445000,-3000.0,0.00014579,2]
[426807527,1782851445000,-3000.0,0.00014579,2]
[426807526,1782851445000,-3000.0,0.00014579,2]
[426807534,1782851445000,-1227.66291516,0.00014579,2]
[426807528,1782851445000,-1679.99013848,0.00014579,2]
[426807532,1782851445000,-3000.0,0.00014579,2]
[426807535,1782851445000,-2305.60237,0.00014579,2]
[426807536,1782851446000,-1077.88171652,0.00014479,2]
[426807537,1782851446000,-522.52533801,0.00014479,2]
[426807771,1782851465000,154.0,0.0002853,30]
[426807772,1782851514000,525.0,0.0002853,30]
[426807773,1782851515000,525.0,0.0002953,30]
[426807774,1782851543000,500.0,0.00030136,120]
[426807775,1782851607000,156.0,0.0002853,30]
[426807776,1782851609000,156.0,0.0002953,30]
[426807777,1782851701000,221.0,0.00029987,30]
[426807778,1782851713000,298.5,0.00028771,30]
[426807780,1782851805000,500.0,0.00030136,120]
[426807781,1782851813000,166.66,0.00012848,2]
[426807783,1782851858000,180.22,0.00030136,30]
[426807790,1782852026000,298.5,0.00028185,30]
[426807794,1782852202000,200.0,0.00012745,2]
[426807795,1782852338000,211.03625114,0.00028126,30]
[426807797,1782852384000,155.0,0.00028529,30]
[426807798,1782852386000,155.0,0.00029529,30]
[426807803,1782852428000,155.0,0.00028529,30]
[426807804,1782852430000,155.0,0.00029529,30]
[426807809,1782852509000,459.61,0.00030136,30]
[426807810,1782852540000,2000.0,0.00030135,30]
[426807812,1782852550000,155.0,0.00028529,30]
[426807813,1782852551000,155.0,0.00029529,30]
[426807818,1782852631000,-166.66,0.00013118,2]
[426807819,1782852631000,-160.20209968,0.00013122,2]
[426807821,1782852631000,-150.0,0.00013126,2]
[426807830,1782852631000,-284.13,0.00013386,2]
[426807820,1782852631000,-339.79790032,0.00013122,2]
[426807826,1782852631000,-150.0,0.00013236,2]
[426807832,1782852631000,-166.66,0.00013659,2]
[426807829,1782852631000,-1000.0,0.00013304,2]
[426807827,1782852631000,-153.12621311,0.00013269,2]
[426807823,1782852631000,-183.97,0.00013173,2]
[426807825,1782852631000,-500.0,0.00013177,2]
[426807828,1782852631000,-332.94,0.00013286,2]
[426807839,1782852631000,-51.69022987,0.00013699,2]
[426807838,1782852631000,-249.30977013,0.00013699,2]
[426807840,1782852631000,-301.02192288,0.00013699,2]
[426807836,1782852631000,-1254.41808677,0.00013699,2]
[426807824,1782852631000,-500.0,0.00013177,2]
[426807837,1782852631000,-1143.28648699,0.00013699,2]
[426807834,1782852631000,-4999.99,0.00013699,2]
[426807833,1782852631000,-15085.45,0.00013699,2]
[426807835,1782852631000,-7171.03565611,0.00013699,2]
[426807831,1782852631000,-166.66,0.00013388,2]
[426807857,1782852637000,-560.68784725,0.00013699,2]
[426807858,1782852637000,-1939.31215275,0.00013699,2]
[426807877,1782852642000,-1366.51784725,0.00013699,2]
[426807879,1782852642000,-1067.27755428,0.00013699,2]
[426807878,1782852642000,-8932.71244572,0.00013699,2]
[426807880,1782852642000,-150.99,0.00013699,2]
[426807881,1782852642000,-5812.39,0.00013699,2]
[426807884,1782852642000,-1361.39009554,0.00013699,2]
[426807883,1782852642000,-790.70620023,0.00013699,2]
[426807882,1782852642000,-3593.36106533,0.00013699,2]
[426807889,1782852646000,-512.4716,0.00013699,2]
[426807888,1782852646000,-346.31,0.00013667,2]
[426807887,1782852646000,-346.31,0.00013334,2]
[426807886,1782852646000,-509.0,0.00013699,2]
[426807892,1782852650000,166.66,0.00012488,2]
[426807893,1782852650000,166.66,0.00012751,2]
[426807894,1782852672000,473.0,0.00028529,30]
[426807895,1782852673000,473.0,0.00029529,30]
[426807897,1782852691000,153.03,0.00029232,30]
[426807896,1782852691000,152.99,0.00028871,30]
[426807898,1782852692000,152.99,0.00026027,30]
[426807899,1782852693000,152.99,0.00028082,30]
[426807900,1782852762000,199.96,0.00030136,30]
[426807901,1782852764000,156.0,0.00028529,30]
[426807902,1782852765000,156.0,0.00029529,30]
[426807904,1782852803000,200.0,0.00012388,2]
[426807905,1782852807000,169.51,0.00030136,30]
[426807906,1782852848000,332.26069098,0.0003013,120]
[426807907,1782852851000,152.99,0.00030136,30]
[426807909,1782852923000,420.74329324,0.0003,120]
[426807912,1782853045000,358.66156431,0.00012899,2]
[426807913,1782853050000,278.76389944,0.0003,120]
[426807916,1782853052000,1324.15724343,0.0002,120]
[426807915,1782853052000,222.19774491,0.0003013,120]
[426807914,1782853052000,406.96174249,0.0002,120]
[426807918,1782853058000,1284.59660374,0.0003,120]
[426807917,1782853058000,179.06711657,0.0003013,120]
[426807926,1782853173000,150.0,0.00013,2]
[426807927,1782853174000,213.0,0.00013,2]
[426807928,1782853175000,444.79212544,0.00013,2]
[426807931,1782853399000,200.0,0.00012896,2]
[426807932,1782853504000,166.66,0.00012352,2]
[426807933,1782853504000,166.66,0.00012612,2]
[426807934,1782853505000,166.66,0.00012872,2]
[426807935,1782853535000,156.0,0.00028529,30]
[426807936,1782853536000,156.0,0.00029529,30]
[426807937,1782853576000,155.0,0.00028529,30]
[426807938,1782853577000,155.0,0.00029529,30]
[426807940,1782853691000,155.0,0.00028529,30]
[426807941,1782853692000,155.0,0.00029529,30]
[426807942,1782853794000,425.0,0.00028529,30]
[426807943,1782853796000,425.0,0.00029529,30]
[426807948,1782853831000,-653.22125378,0.00013036,2]
[426807946,1782853831000,-150.0,0.0001302,2]
[426807949,1782853831000,-174.08122599,0.00013072,2]
[426807950,1782853831000,-314.29,0.00013102,2]
[426807947,1782853831000,-346.77874622,0.00013036,2]
[426807951,1782853831000,-166.66,0.00013132,2]
[426807954,1782853831000,-314.24,0.00013196,2]
[426807953,1782853831000,-150.0,0.00013172,2]
[426807957,1782853831000,-5368.46,0.00013201,2]
[426807958,1782853831000,-1239.58392729,0.00013201,2]
[426807959,1782853831000,-836.38742294,0.00013201,2]
[426807952,1782853831000,-2000.0,0.00013145,2]
[426807956,1782853831000,-2745.52,0.00013201,2]
[426807955,1782853831000,-174.08122599,0.00013201,2]
[426807968,1782853832000,-7055.97637585,0.00013201,2]
[426807961,1782853832000,-820.94351254,0.00013201,2]
[426807960,1782853832000,-2019.23028665,0.00013201,2]
[426807962,1782853832000,-1081.52417762,0.00013201,2]
[426807964,1782853832000,-150.99,0.00013201,2]
[426807963,1782853832000,-4002.32067296,0.00013201,2]
[426807967,1782853832000,-1079.96336635,0.00013201,2]
[426807966,1782853832000,-601.7902578,0.00013201,2]
[426807971,1782853832000,-7088.47653214,0.00013201,2]
[426807969,1782853832000,-1495.38,0.00013201,2]
[426807970,1782853832000,-12240.41,0.00013201,2]
[426807965,1782853832000,-499.99,0.00013201,2]
[426807976,1782853838000,-2911.51346786,0.00013201,2]
[426807978,1782853838000,-3267.42512633,0.00013201,2]
[426807977,1782853838000,-999.99,0.00013201,2]
[426808023,1782853840000,-946.99,0.00013201,2]
[426808024,1782853840000,-310.0,0.00013201,2]
[426808025,1782853840000,-475.57487367,0.00013201,2]
[426808027,1782853840000,-1554.34064082,0.00013233,2]
[426808026,1782853840000,-1055.27,0.00013233,2]
[426808030,1782853842000,-1159.05,0.00013233,2]
[426808031,1782853842000,-2957.77850516,0.00013233,2]
[426808029,1782853842000,-1751.48935918,0.00013233,2]
[426808050,1782853843000,-500.0,0.00013296,2]
[426808049,1782853843000,-500.0,0.00013296,2]
[426808047,1782853843000,-500.0,0.00013296,2]
[426808048,1782853843000,-500.0,0.00013296,2]
[426808053,1782853843000,-500.0,0.00013296,2]
[426808052,1782853843000,-500.0,0.00013296,2]
[426808057,1782853843000,-500.0,0.00013296,2]
[426808054,1782853843000,-500.0,0.00013296,2]
[426808056,1782853843000,-500.0,0.00013296,2]
[426808066,1782853843000,-500.0,0.00013296,2]
[426808058,1782853843000,-500.0,0.00013296,2]
[426808060,1782853843000,-64.25686759,0.00013296,2]
[426808051,1782853843000,-500.0,0.00013296,2]
[426808046,1782853843000,-500.0,0.00013296,2]
[426808037,1782853843000,-50.46884522,0.00013296,2]
[426808045,1782853843000,-500.0,0.00013296,2]
[426808055,1782853843000,-233.76553789,0.00013296,2]
[426808041,1782853843000,-500.0,0.00013296,2]
[426808039,1782853843000,-279.30832635,0.00013296,2]
[426808043,1782853843000,-500.0,0.00013296,2]
[426808040,1782853843000,-500.0,0.00013296,2]
[426808038,1782853843000,-500.0,0.00013296,2]
[426808042,1782853843000,-500.0,0.00013296,2]
[426808034,1782853843000,-5812.39,0.00013233,2]
[426808035,1782853843000,-150.0,0.00013295,2]
[426808061,1782853843000,-500.0,0.00013296,2]
[426808033,1782853843000,-4304.97149484,0.00013233,2]
[426808036,1782853843000,-449.53115478,0.00013296,2]
[426808032,1782853843000,-2737.24,0.00013233,2]
[426808044,1782853843000,-299.9444511,0.00013296,2]
[426808065,1782853843000,-500.0,0.00013296,2]
[426808077,1782853843000,-500.0,0.00013299,2]
[426808059,1782853843000,-435.74313241,0.00013296,2]
[426808095,1782853843000,-145.24297213,0.00013301,2]
[426808091,1782853843000,-375.37007541,0.00013301,2]
[426808092,1782853843000,-280.259016,0.00013301,2]
[426808094,1782853843000,-280.259016,0.00013301,2]
[426808093,1782853843000,-280.259016,0.00013301,2]
[426808090,1782853843000,-34.63984559,0.00013301,2]
[426808088,1782853843000,-153.254805,0.00013301,2]
[426808082,1782853843000,-280.259016,0.000133,2]
[426808081,1782853843000,-348.03548468,0.00013299,2]
[426808064,1782853843000,-500.0,0.00013296,2]
[426808080,1782853843000,-500.0,0.00013299,2]
[426808086,1782853843000,-156.3971362,0.00013301,2]
[426808089,1782853843000,-500.0,0.00013301,2]
[426808085,1782853843000,-280.259016,0.000133,2]
[426808084,1782853843000,-280.259016,0.000133,2]
[426808087,1782853843000,-102.81154964,0.00013301,2]
[426808073,1782853843000,-500.0,0.00013296,2]
[426808062,1782853843000,-500.0,0.00013296,2]
[426808083,1782853843000,-280.259016,0.000133,2]
[426808067,1782853843000,-500.0,0.00013296,2]
[426808079,1782853843000,-361.92617972,0.00013299,2]
[426808075,1782853843000,-164.02527044,0.00013299,2]
[426808076,1782853843000,-500.0,0.00013299,2]
[426808063,1782853843000,-500.0,0.00013296,2]
[426808068,1782853843000,-500.0,0.00013296,2]
[426808078,1782853843000,-152.2558882,0.00013299,2]
[426808074,1782853843000,-500.0,0.00013296,2]
[426808070,1782853843000,-500.0,0.00013296,2]
[426808069,1782853843000,-500.0,0.00013296,2]
[426808071,1782853843000,-256.08572878,0.00013296,2]
[426808072,1782853843000,-500.0,0.00013296,2]
[426808099,1782853846000,-280.259016,0.00013301,2]
[426808098,1782853846000,-135.01604387,0.00013301,2]
[426808101,1782853846000,-280.259016,0.00013301,2]
[426808102,1782853846000,-108.50690813,0.00013301,2]
[426808100,1782853846000,-280.259016,0.00013301,2]
[426808106,1782853846000,-166.66,0.00013652,2]
[426808103,1782853846000,-171.75210787,0.00013301,2]
[426808105,1782853846000,-314.29,0.0001343,2]
[426808112,1782853846000,-151.0,0.00013699,2]
[426808107,1782853846000,-1411.51,0.00013699,2]
[426808104,1782853846000,-166.66,0.00013392,2]
[426808111,1782853846000,-151.0,0.00013699,2]
[426808113,1782853846000,-151.0,0.00013699,2]
[426808121,1782853846000,-1638.48399428,0.00013985,2]
[426808109,1782853846000,-151.0,0.00013699,2]
[426808108,1782853846000,-151.0,0.00013699,2]
[426808124,1782853846000,-275.31667204,0.00014024,2]
[426808122,1782853846000,-4889.1681297,0.00014024,2]
[426808119,1782853846000,-2176.539,0.00013924,2]
[426808118,1782853846000,-251.092439,0.00013924,2]
[426808123,1782853846000,-742.7760465,0.00014024,2]
[426808120,1782853846000,-430.30130835,0.00013985,2]
[426808114,1782853846000,-314.29,0.00013757,2]
[426808116,1782853846000,-151.0,0.00013924,2]
[426808110,1782853846000,-151.0,0.00013699,2]
[426808117,1782853846000,-151.0,0.00013924,2]
[426808115,1782853846000,-172.06,0.00013767,2]
[426808128,1782853887000,157.0,0.00028529,30]
[426808131,1782853902000,-38.1019998,0.000132,2]
[426808130,1782853902000,-603.3483258,0.000132,2]
[426808129,1782853902000,-500.0,0.000132,2]
[426808133,1782853958000,50000.0,0.00030137,35]
[426808134,1782853963000,50000.0,0.00030137,36]
[426808135,1782853988000,50000.0,0.00030137,37]
[426808181,1782854335000,166.66,0.00012763,2]
[426808180,1782854335000,166.66,0.00012499,2]
[426808182,1782854421000,-166.66,0.00013026,2]
[426808183,1782854487000,1316.0,0.00030137,30]
[426808187,1782854652000,156.0,0.00028529,30]
[426808188,1782854653000,156.0,0.00029529,30]
[426808189,1782854669000,844.21,0.00012974,2]
[426808190,1782854676000,157.12,0.00012975,2]
[426808192,1782854689000,155.0,0.00028529,30]
[426808193,1782854690000,155.0,0.00029529,30]